bitfinex/quotes_BTCUSD_20250127
["timestamp","ask_amount","ask_price","bid_price","bid_amount"]
[1737964455252,0.1574677,99290.0,99289.0,0.00164005]
[1737964455462,0.0063947,99290.0,99289.0,0.00164005]
[1737964456079,0.1564667,99290.0,99289.0,0.00164005]
[1737964456414,0.0043947,99290.0,99289.0,0.00164005]
[1737964456632,0.1554667,99290.0,99289.0,0.00164005]
[1737964457246,0.0043947,99290.0,99276.0,0.201458]
[1737964457444,0.151075,99289.0,99280.0,0.151087]
[1737964457833,0.151075,99289.0,99277.0,0.201456]
[1737964458249,0.151075,99289.0,99280.0,0.151087]
[1737964459293,0.0033947,99290.0,99276.0,0.001]
[1737964459478,0.0033947,99290.0,99277.0,0.00100707]
[1737964459972,0.0033947,99290.0,99285.0,0.151079]
[1737964460429,0.0033947,99290.0,99277.0,0.202454]
[1737964460628,0.151077,99288.0,99278.0,0.15109]
[1737964460842,0.151078,99286.0,99273.0,0.201464]
[1737964461061,0.151078,99286.0,99278.0,0.15109]
[1737964461271,0.0033947,99290.0,99259.0,0.201491]
[1737964461467,0.151093,99277.0,99267.0,0.141106]
[1737964461672,0.151093,99277.0,99250.0,0.14885432]
[1737964461673,0.10174199,99290.0,99271.0,0.201468]
[1737964461877,0.151078,99287.0,99277.0,0.15138836]
[1737964462082,0.10074199,99290.0,99278.0,0.201454]
[1737964462311,0.1544687,99290.0,99280.0,0.151086]
[1737964462522,0.201432,99289.0,99279.0,0.151087]
[1737964462753,0.151078,99287.0,99277.0,0.00029736]
[1737964462961,0.201434,99288.0,99277.0,0.00129736]
[1737964463082,0.201436,99287.0,99277.0,0.00129736]
[1737964463282,0.0033947,99290.0,99277.0,0.00029736]
[1737964463522,0.15109,99278.0,99277.0,0.00029736]
[1737964464131,0.201434,99288.0,99277.0,0.00029736]
[1737964464336,0.151084,99283.0,99277.0,0.00029736]
[1737964464541,0.09734729,99287.0,99277.0,0.00029736]
[1737964464777,0.151083,99284.0,99277.0,0.00029736]
[1737964464978,0.09734729,99287.0,99277.0,0.00029736]
[1737964465180,0.004,99278.0,99277.0,0.00029736]
[1737964465382,0.15509,99278.0,99277.0,0.00029736]
[1737964466098,0.004,99278.0,99277.0,0.00029736]
[1737964466518,0.15109,99278.0,99277.0,0.00029736]
[1737964467061,0.151085,99282.0,99277.0,0.00029736]
[1737964467317,0.001,99278.0,99277.0,0.00029736]
[1737964467870,0.004,99278.0,99277.0,0.00029736]
[1737964468077,0.004,99278.0,99277.0,0.15138936]
[1737964468281,0.001,99278.0,99277.0,0.15138936]
[1737964468901,0.151082,99284.0,99277.0,0.00029736]
[1737964469107,0.151082,99284.0,99277.0,0.15138736]
[1737964469305,0.002,99278.0,99277.0,0.00029736]
[1737964469924,0.005,99278.0,99277.0,0.15138936]
[1737964470126,0.151081,99285.0,99277.0,0.15138936]
[1737964470343,0.201434,99288.0,99277.0,0.00029736]
[1737964470661,0.15209,99278.0,99277.0,0.00029736]
[1737964470889,0.001,99278.0,99277.0,0.00029736]
[1737964471138,0.001,99278.0,99277.0,0.15138936]
[1737964471139,0.003,99278.0,99277.0,0.15138936]
[1737964471583,0.001,99278.0,99277.0,0.00029736]
[1737964471804,0.001,99278.0,99277.0,0.15138936]
[1737964472013,0.002,99288.0,99277.0,0.00029736]
[1737964472221,0.002,99288.0,99280.0,0.4029]
[1737964472426,0.001,99285.0,99284.0,0.151081]
[1737964472846,0.002,99288.0,99282.0,0.151084]
[1737964473045,0.002,99288.0,99286.0,0.151077]
[1737964473248,0.002,99288.0,99285.0,0.151078]
[1737964473546,0.0001416,99290.0,99277.0,0.00029736]
[1737964473764,0.001,99278.0,99277.0,0.15138936]
[1737964473879,0.01854,99285.0,99277.0,0.00029736]
[1737964474086,0.01854,99285.0,99284.0,0.151081]
[1737964474336,0.01854,99285.0,99278.0,0.201454]
[1737964474535,0.01854,99285.0,99282.0,0.151084]
[1737964474734,0.01854,99285.0,99284.0,0.151081]
[1737964476342,0.01954,99285.0,99284.0,0.151081]
[1737964477153,0.01854,99285.0,99284.0,0.151081]
[1737964477368,0.01954,99285.0,99284.0,0.151081]
[1737964477545,0.01854,99285.0,99284.0,0.151081]
[1737964477950,0.01954,99285.0,99284.0,0.151081]
[1737964478197,0.01854,99285.0,99284.0,0.151081]
[1737964478590,0.01954,99285.0,99284.0,0.151081]
[1737964479166,0.01854,99285.0,99284.0,0.151081]
[1737964479598,0.01854,99285.0,99284.0,0.18236478]
[1737964480040,0.01854,99285.0,99284.0,0.151081]
[1737964482825,0.0001416,99290.0,99289.0,0.151074]
[1737964484475,0.0021416,99290.0,99289.0,0.151074]
[1737964484689,0.0021416,99290.0,99289.0,0.18231387]
[1737964485098,0.0021416,99290.0,99289.0,0.151074]
[1737964485304,0.0021416,99290.0,99289.0,0.18231379]
[1737964485662,0.0031416,99290.0,99289.0,0.18231379]
[1737964485875,0.0031416,99290.0,99289.0,0.151074]
[1737964490285,0.023,99308.0,99283.0,0.15]
[1737964490489,0.15105,99305.0,99298.0,0.151059]
[1737964490692,0.15105,99305.0,99299.0,0.151057]
[1737964490899,0.09734729,99304.0,99283.0,0.00049327]
[1737964491073,0.023,99303.0,99283.0,0.00049327]
[1737964491303,0.201409,99300.0,99283.0,0.00049327]
[1737964491513,0.151074,99289.0,99283.0,0.00049327]
[1737964491722,0.15108,99285.0,99283.0,0.00049327]
[1737964491900,0.023,99287.0,99283.0,0.00049327]
[1737964492501,0.174078,99287.0,99283.0,0.00049327]
[1737964493162,0.151081,99284.0,99283.0,0.00049327]
[1737964493367,0.174081,99284.0,99283.0,0.00049327]
[1737964493752,0.151081,99284.0,99283.0,0.00049327]
[1737964494003,0.151081,99284.0,99283.0,0.00149327]
[1737964494205,0.151081,99284.0,99283.0,0.00049327]
[1737964494522,0.152081,99284.0,99283.0,0.00049327]
[1737964494718,0.24942829,99284.0,99283.0,0.00049327]
[1737964495109,0.09834729,99284.0,99283.0,0.00049327]
[1737964495718,0.24942829,99284.0,99283.0,0.00049327]
[1737964497089,0.27242829,99284.0,99283.0,0.00049327]
[1737964498579,0.09834729,99284.0,99283.0,0.00049327]
[1737964498783,0.001,99284.0,99283.0,0.00049327]
[1737964499302,0.27242829,99284.0,99283.0,0.00049327]
[1737964500469,0.35152829,99284.0,99283.0,0.00049327]
[1737964501278,0.02325673,99283.0,99277.0,0.00029736]
[1737964501492,0.17409,99278.0,99277.0,0.00044525]
[1737964501746,0.27143729,99278.0,99277.0,0.00044525]
[1737964503127,0.31893729,99278.0,99277.0,0.00044525]
[1737964503402,0.41657729,99278.0,99277.0,0.00044525]
[1737964503609,0.41857729,99278.0,99277.0,0.00044525]
[1737964503815,0.57157729,99278.0,99277.0,0.00044525]
[1737964503962,0.56857729,99278.0,99277.0,0.00044525]
[1737964504176,0.64954744,99278.0,99277.0,0.00044525]
[1737964504377,1.89245706,99278.0,99277.0,2.5e-07]
[1737964504559,1.89645706,99278.0,99277.0,2.5e-07]
[1737964504770,0.301106,99268.0,99255.0,0.08999121]
[1737964505069,0.54805329,99268.0,99255.0,0.08999121]
[1737964505977,0.24845329,99268.0,99255.0,0.08999121]
[1737964506180,0.26726158,99268.0,99255.0,0.08999121]
[1737964506944,0.29026158,99268.0,99255.0,0.08999121]
[1737964507215,0.27145329,99268.0,99255.0,0.08999121]
[1737964507460,0.27945329,99268.0,99267.0,0.00129736]
[1737964508478,0.008,99268.0,99267.0,0.15240436]
[1737964509206,0.157106,99268.0,99267.0,0.00129736]
[1737964509209,0.10634729,99268.0,99267.0,0.00129736]
[1737964509448,0.28045329,99268.0,99267.0,0.00129736]
[1737964510050,0.27445329,99268.0,99267.0,0.00029736]
[1737964510265,0.27545329,99268.0,99267.0,0.00029736]
[1737964510454,0.27745329,99268.0,99267.0,0.00029736]
[1737964510630,0.35035329,99268.0,99267.0,0.00029736]
[1737964510835,0.35535329,99268.0,99267.0,0.00029736]
[1737964511238,0.35035329,99268.0,99267.0,0.00029736]
[1737964511435,0.35001409,99268.0,99267.0,0.00029736]
[1737964511663,0.36738766,99268.0,99267.0,0.00029736]
[1737964511867,0.36038766,99268.0,99267.0,0.00029736]
[1737964512045,0.36238766,99268.0,99267.0,0.00029736]
[1737964512676,0.09734729,99268.0,99267.0,0.00029736]
[1737964512896,0.25045329,99268.0,99267.0,0.00029736]
[1737964513100,0.25645329,99268.0,99267.0,0.00129736]
[1737964513591,0.24845329,99268.0,99267.0,0.00029736]
[1737964513793,0.21441567,99268.0,99267.0,0.00029736]
[1737964514192,0.22920638,99268.0,99267.0,0.00029736]
[1737964514549,0.23520638,99268.0,99267.0,0.00129736]
[1737964514771,0.25220638,99268.0,99267.0,0.00029736]
[1737964515006,0.25520638,99268.0,99267.0,0.00029736]
[1737964515484,0.25820638,99268.0,99267.0,0.00029736]
[1737964515609,0.40167234,99268.0,99267.0,1e-08]
[1737964515812,0.55167234,99268.0,99267.0,1e-08]
[1737964516038,0.54867234,99268.0,99267.0,1e-08]
[1737964516249,0.56721234,99268.0,99267.0,1e-08]
[1737964516688,0.56221234,99268.0,99267.0,1e-08]
[1737964517593,0.56621234,99268.0,99267.0,1e-08]
[1737964517805,0.34601234,99268.0,99267.0,1e-08]
[1737964518017,0.26731234,99268.0,99267.0,1e-08]
[1737964518491,0.29031234,99268.0,99267.0,1e-08]
[1737964518851,0.29231234,99268.0,99267.0,1e-08]
[1737964519261,0.27152163,99268.0,99267.0,1e-08]
[1737964519682,0.26852163,99268.0,99267.0,1e-08]
[1737964520190,0.25052163,99268.0,99267.0,1e-08]
[1737964520374,0.09441563,99268.0,99267.0,1e-08]
[1737964520567,0.24552163,99268.0,99267.0,1e-08]
[1737964521139,0.26852163,99268.0,99267.0,1e-08]
[1737964521626,0.35072163,99268.0,99267.0,1e-08]
[1737964522012,0.34972163,99268.0,99267.0,1e-08]
[1737964522425,0.35172163,99268.0,99267.0,1e-08]
[1737964522797,0.35372163,99268.0,99267.0,1e-08]
[1737964523002,0.368534,99268.0,99267.0,1e-08]
[1737964523208,0.286334,99268.0,99267.0,1e-08]
[1737964523608,0.286334,99268.0,99267.0,0.00100001]
[1737964524090,0.26752163,99268.0,99267.0,0.00100001]
[1737964526353,0.28634846,99268.0,99267.0,0.00100001]
[1737964527764,0.28634846,99268.0,99267.0,1e-08]
[1737964527984,0.28634846,99268.0,99267.0,0.00100001]
[1737964532067,0.03736683,99268.0,99267.0,0.17210701]
[1737964532276,0.03736683,99268.0,99267.0,0.18210701]
[1737964532499,0.03750843,99268.0,99267.0,0.18210701]
[1737964532917,0.0186816,99268.0,99267.0,0.18210701]
[1737964533454,0.0186816,99268.0,99267.0,0.18110701]
[1737964533655,0.0196816,99268.0,99267.0,0.18110701]
[1737964534175,0.0186816,99268.0,99267.0,0.18110701]
[1737964534576,0.0236816,99268.0,99267.0,0.18110701]
[1737964535097,0.0226816,99268.0,99267.0,0.18110701]
[1737964535235,0.0246816,99268.0,99267.0,0.18110701]
[1737964535673,0.0246816,99268.0,99267.0,0.26170701]
[1737964536481,0.0246816,99268.0,99267.0,0.41170701]
[1737964536894,0.0206816,99268.0,99267.0,0.41170701]
[1737964537324,0.0246816,99268.0,99267.0,0.41170701]
[1737964537525,0.0226816,99268.0,99267.0,0.41170701]
[1737964537724,0.0186816,99268.0,99267.0,0.41170701]
[1737964538018,0.0186816,99268.0,99267.0,0.41270701]
[1737964538238,0.0206816,99268.0,99267.0,0.41270701]
[1737964538645,0.0186816,99268.0,99267.0,0.41270701]
[1737964538864,0.0186816,99268.0,99267.0,0.5100543]
[1737964539047,0.01452484,99268.0,99267.0,0.5790543]
[1737964539329,0.01452484,99268.0,99267.0,0.60934098]
[1737964539544,0.00907802,99268.0,99267.0,0.60934098]
[1737964539746,0.006,99320.0,99311.0,0.02]
[1737964539959,0.09734729,99319.0,99310.0,0.02]
[1737964540167,0.023,99316.0,99313.0,0.02]
[1737964540587,0.023,99314.0,99313.0,0.02]
[1737964540794,0.023,99314.0,99301.0,0.402811]
[1737964540795,0.09734729,99316.0,99315.0,0.02]
[1737964541006,0.00649354,99320.0,99319.0,0.02]
[1737964541218,0.00649354,99320.0,99318.0,0.02]
[1737964541219,0.023,99319.0,99318.0,0.02]
[1737964541428,0.12034729,99319.0,99318.0,0.02]
[1737964541629,0.12034729,99319.0,99315.0,0.02]
[1737964541808,0.12034729,99319.0,99318.0,0.02]
[1737964543717,0.12034729,99319.0,99314.0,0.01]
[1737964543718,0.00649354,99320.0,99319.0,0.181028]
[1737964544673,0.00649354,99320.0,99319.0,0.411628]
[1737964544895,5.069e-05,99340.0,99329.0,0.331013]
[1737964545099,3e-07,99330.0,99329.0,1.49975229]
[1737964545287,5.069e-05,99340.0,99329.0,1.49975229]
[1737964545288,5.069e-05,99340.0,99339.0,0.460598]
[1737964545488,5.069e-05,99340.0,99339.0,1.06063533]
[1737964545750,5.069e-05,99340.0,99339.0,1.08653826]
[1737964545751,0.00019475,99340.0,99339.0,1.08653826]
[1737964545960,0.00019475,99340.0,99339.0,1.11565835]
[1737964546292,0.00019475,99340.0,99339.0,2.05745035]
[1737964546501,0.00019475,99340.0,99339.0,3.00139135]
[1737964547002,0.00019475,99340.0,99339.0,2.74866635]
[1737964547314,0.09860321,99378.0,99349.0,0.320982]
[1737964547549,0.09860321,99378.0,99349.0,0.97929485]
[1737964548166,0.09860321,99378.0,99349.0,2.00168685]
[1737964548398,0.09860321,99378.0,99367.0,0.03]
[1737964548605,0.09860321,99378.0,99367.0,0.42830229]
[1737964548805,0.09860321,99378.0,99367.0,0.48657781]
[1737964549260,0.201172,99418.0,99367.0,0.48657781]
[1737964549261,0.20116,99423.0,99405.0,0.02]
[1737964549498,0.0011466,99440.0,99405.0,0.02]
[1737964549499,0.201168,99419.0,99405.0,0.02]
[1737964549677,0.13761129,99418.0,99405.0,0.02]
[1737964549909,0.150887,99412.0,99405.0,0.02]
[1737964550137,0.09734729,99411.0,99405.0,0.02]
[1737964550350,0.023,99410.0,99405.0,0.02]
[1737964550559,0.023,99408.0,99405.0,0.02049263]
[1737964550781,0.023,99406.0,99405.0,0.02049263]
[1737964550969,0.12034729,99406.0,99405.0,0.02049263]
[1737964551384,0.12318002,99406.0,99405.0,0.02049263]
[1737964552015,0.14473236,99406.0,99405.0,0.02049263]
[1737964552643,0.14473236,99406.0,99405.0,0.00049263]
[1737964552870,0.14473236,99406.0,99405.0,0.02049263]
[1737964553086,0.29662836,99406.0,99405.0,0.00049263]
[1737964553943,0.29562836,99406.0,99405.0,0.00049263]
[1737964554126,0.29962836,99406.0,99405.0,0.00049263]
[1737964554733,0.30062836,99406.0,99405.0,0.00049263]
[1737964555324,0.31816836,99406.0,99405.0,0.00049263]
[1737964555522,0.31730986,99406.0,99405.0,0.00049263]
[1737964555728,0.32330986,99406.0,99405.0,0.00149263]
[1737964555960,0.32030986,99406.0,99405.0,0.00149263]
[1737964556162,0.14641386,99406.0,99405.0,0.00149263]
[1737964556362,0.14741386,99406.0,99405.0,0.00149263]
[1737964556571,0.02251423,99406.0,99405.0,0.18138963]
[1737964556775,0.0196815,99406.0,99405.0,0.18138963]
[1737964556979,0.0226815,99406.0,99405.0,0.17619232]
[1737964557389,0.0196815,99406.0,99405.0,0.32619232]
[1737964557818,0.0186815,99406.0,99405.0,0.32619232]
[1737964558231,0.0206815,99406.0,99405.0,0.32619232]
[1737964558432,0.0206815,99406.0,99405.0,0.30619232]
[1737964558672,0.0196815,99406.0,99405.0,0.32619232]
[1737964558913,0.0196815,99406.0,99405.0,0.42353961]
[1737964559089,0.0196815,99406.0,99405.0,0.92822965]
[1737964559504,0.0196815,99406.0,99405.0,0.42353961]
[1737964559505,0.0186815,99406.0,99405.0,0.42353961]
[1737964559730,0.0186815,99406.0,99405.0,0.42553961]
[1737964559872,0.0186815,99406.0,99405.0,0.33119232]
[1737964560076,0.0186815,99406.0,99405.0,0.32819232]
[1737964560291,0.0186815,99406.0,99405.0,0.42553961]
[1737964560501,0.0186815,99406.0,99405.0,0.33119232]
[1737964560945,0.0186815,99406.0,99405.0,0.18119232]
[1737964561152,0.0186815,99406.0,99405.0,0.023]
[1737964561352,0.26692479,99406.0,99405.0,0.005]
[1737964561598,0.35595847,99406.0,99372.0,0.00529532]
[1737964561753,0.201229,99389.0,99376.0,0.02]
[1737964561952,0.11742392,99388.0,99368.0,0.00529532]
[1737964562154,0.150948,99372.0,99367.0,0.00049354]
[1737964562408,0.02195416,99388.0,99387.0,0.02]
[1737964562756,0.0186815,99406.0,99385.0,0.00529532]
[1737964562973,0.09734729,99405.0,99389.0,0.02]
[1737964563217,0.09734729,99405.0,99393.0,0.01927732]
[1737964563447,0.0196815,99406.0,99405.0,0.17546964]
[1737964563607,0.11702879,99406.0,99405.0,0.01927732]
[1737964563760,0.11702879,99406.0,99405.0,0.17017432]
[1737964564174,0.11602879,99406.0,99405.0,0.01927732]
[1737964564375,0.13726144,99406.0,99398.0,0.01927732]
[1737964564572,0.09734729,99405.0,99395.0,0.01927732]
[1737964564777,0.09734729,99405.0,99398.0,0.00049354]
[1737964564974,0.09734729,99405.0,99399.0,0.01927732]
[1737964565353,0.0196815,99406.0,99405.0,0.17546964]
[1737964565763,0.0196815,99406.0,99398.0,0.00049354]
[1737964565764,0.150906,99399.0,99398.0,0.00049354]
[1737964565969,0.24825329,99399.0,99398.0,0.00049354]
[1737964567195,0.24825329,99399.0,99398.0,0.00149354]
[1737964567196,0.10170583,99399.0,99398.0,0.00149354]
[1737964567378,0.15014274,99399.0,99398.0,0.00149354]
[1737964567584,0.30104874,99399.0,99398.0,0.00149354]
[1737964567793,0.30404874,99399.0,99398.0,0.00149354]
[1737964568202,0.15314274,99399.0,99398.0,0.00149354]
[1737964568403,0.14314274,99399.0,99398.0,0.00049354]
[1737964568602,0.14614274,99399.0,99398.0,0.00049354]
[1737964568821,0.15414274,99399.0,99398.0,0.00149354]
[1737964569023,0.30504874,99399.0,99398.0,0.00149354]
[1737964569163,0.29704874,99399.0,99398.0,0.00049354]
[1737964569372,0.30404874,99399.0,99398.0,0.00149354]
[1737964569803,0.14614274,99399.0,99398.0,0.00049354]
[1737964570006,0.30504874,99399.0,99398.0,0.001]
[1737964571245,0.30204874,99399.0,99398.0,0.001]
[1737964571578,0.30504874,99399.0,99398.0,0.001]
[1737964571996,0.1460877,99399.0,99385.0,0.03]
[1737964572209,0.15092,99391.0,99385.0,0.03049376]
[1737964572413,0.09734729,99390.0,99389.0,0.150922]
[1737964572983,0.05643691,99399.0,99391.0,0.01927732]
[1737964573174,0.02998618,99395.0,99391.0,0.01927732]
[1737964573374,0.09734729,99394.0,99391.0,0.01927732]
[1737964573612,0.004,99390.0,99385.0,0.03049376]
[1737964573846,0.09734729,99389.0,99385.0,0.03049376]
[1737964574056,0.24827329,99386.0,99385.0,0.03049376]
[1737964574264,0.09734729,99386.0,99385.0,0.03049376]
[1737964574464,0.61897729,99386.0,99385.0,0.03049376]
[1737964575537,0.66777337,99386.0,99385.0,0.03049376]
[1737964575935,0.66977337,99386.0,99385.0,0.03049376]
[1737964576265,0.66877337,99386.0,99385.0,0.03049376]
[1737964576422,0.67277337,99386.0,99385.0,0.03049376]
[1737964576824,0.66877337,99386.0,99385.0,0.03049376]
[1737964577054,0.81869937,99386.0,99385.0,0.03049376]
[1737964577829,0.82269937,99386.0,99385.0,0.03049376]
[1737964578629,0.82369937,99386.0,99385.0,0.03049376]
[1737964579070,0.81969937,99386.0,99385.0,0.03049376]
[1737964579203,0.81869937,99386.0,99385.0,0.03049376]
[1737964579403,0.84269937,99386.0,99385.0,0.03049376]
[1737964579615,0.84169937,99386.0,99385.0,0.03049376]
[1737964579989,0.89311161,99386.0,99385.0,0.03049376]
[1737964580190,0.84169937,99386.0,99385.0,0.03049376]
[1737964582013,0.84169937,99386.0,99385.0,0.00536911]
[1737964583031,0.84269937,99386.0,99385.0,0.00536911]
[1737964583447,0.150952,99369.0,99368.0,0.00029694]
[1737964583656,0.75138929,99369.0,99368.0,0.00079082]
[1737964583866,0.75138929,99369.0,99324.0,0.0495]
[1737964583867,0.150996,99340.0,99321.0,0.01927732]
[1737964584076,0.75143329,99340.0,99339.0,0.00079237]
[1737964584486,0.76997329,99340.0,99339.0,0.00079237]
[1737964584690,0.61897729,99340.0,99339.0,0.00079237]
[1737964584895,0.64587143,99340.0,99339.0,0.00079237]
[1737964585142,0.64587143,99340.0,99339.0,0.15179037]
[1737964585350,0.69466751,99340.0,99339.0,0.00079237]
[1737964585716,0.66777337,99340.0,99339.0,0.15179037]
[1737964586294,0.52663,99340.0,99339.0,0.17636301]
[1737964586521,0.52163,99340.0,99339.0,0.17636301]
[1737964587052,0.52563,99340.0,99339.0,0.17636301]
[1737964587489,0.52163,99340.0,99339.0,0.17636301]
[1737964588031,0.52363,99340.0,99339.0,0.17636301]
[1737964588487,0.52163,99340.0,99339.0,0.17636301]
[1737964588875,0.52357509,99340.0,99339.0,0.17636301]
[1737964589322,0.52757509,99340.0,99339.0,0.17636301]
[1737964589526,0.52357509,99340.0,99339.0,0.17636301]
[1737964589922,0.52757509,99340.0,99339.0,0.15179037]
[1737964590068,0.52757509,99340.0,99339.0,0.17636301]
[1737964590267,0.62492238,99340.0,99339.0,0.15179037]
[1737964590512,0.62492238,99340.0,99339.0,0.17106769]
[1737964590714,0.62492238,99340.0,99339.0,0.15179037]
[1737964590914,0.77591838,99340.0,99339.0,0.00079237]
[1737964591323,0.64369255,99340.0,99339.0,0.00079237]
[1737964591719,0.67021664,99340.0,99339.0,0.00079237]
[1737964592929,0.82121264,99340.0,99339.0,0.00079237]
[1737964593401,0.84421264,99340.0,99339.0,0.00079237]
[1737964593940,0.87023135,99340.0,99339.0,0.00079237]
[1737964594185,0.86923135,99340.0,99339.0,0.00079237]
[1737964594435,0.86823135,99340.0,99339.0,0.00079237]
[1737964594660,0.86923135,99340.0,99339.0,0.00079237]
[1737964596092,1.01923135,99340.0,99339.0,0.00079237]
[1737964596316,1.01923135,99340.0,99290.0,0.01927732]
[1737964596317,0.201348,99331.0,99290.0,0.01927732]
[1737964596532,0.24839329,99307.0,99286.0,0.00049602]
[1737964596736,0.201412,99299.0,99286.0,0.00049602]
[1737964596950,0.201415,99297.0,99286.0,0.00049602]
[1737964597167,0.151077,99287.0,99286.0,0.00049602]
[1737964597377,0.09734729,99287.0,99286.0,0.00049602]
[1737964597593,0.75145938,99287.0,99286.0,0.00049602]
[1737964597802,0.60038238,99287.0,99286.0,0.00049602]
[1737964598007,0.75145938,99287.0,99286.0,0.00049602]
[1737964598211,0.60038238,99287.0,99286.0,0.00049602]
[1737964598433,0.60138238,99287.0,99286.0,0.00049602]
[1737964598643,0.75245938,99287.0,99286.0,0.00049602]
[1737964598869,0.77545938,99287.0,99286.0,0.00049602]
[1737964599083,1.09661558,99287.0,99286.0,0.00049602]
[1737964599288,0.151104,99269.0,99264.0,0.00029736]
[1737964599523,0.27145129,99269.0,99268.0,0.00079376]
[1737964599738,0.92448638,99269.0,99268.0,0.00079376]
[1737964599942,0.92448638,99269.0,99267.0,0.00882445]
[1737964599943,0.324106,99268.0,99267.0,0.00882445]
[1737964600203,0.32881468,99265.0,99264.0,0.00029736]
[1737964600420,0.174127,99254.0,99253.0,0.08831114]
[1737964600624,0.27147429,99254.0,99253.0,0.08831114]
[1737964600845,0.77450938,99254.0,99253.0,0.08831114]
[1737964601054,0.97501406,99254.0,99253.0,0.05287556]
[1737964601262,1.07236135,99254.0,99253.0,0.04238621]
[1737964601681,1.07536135,99254.0,99253.0,0.04238621]
[1737964602098,1.12107408,99254.0,99253.0,0.00438621]
[1737964602307,1.12107408,99254.0,99250.0,5.0]
[1737964602308,0.15583568,99251.0,99250.0,5.0]
[1737964602519,0.92921806,99251.0,99250.0,5.0]
[1737964603161,1.07527808,99251.0,99250.0,5.0]
[1737964603342,1.07527808,99251.0,99250.0,4.93261]
[1737964603570,1.07260803,99251.0,99250.0,4.91666738]
[1737964603775,1.09657681,99251.0,99250.0,4.45652986]
[1737964603983,1.15943071,99251.0,99250.0,4.44441285]
[1737964604198,1.15943071,99251.0,99250.0,3.98762898]
[1737964604408,1.15915417,99251.0,99250.0,3.39924689]
[1737964604609,1.18312295,99251.0,99250.0,3.39924689]
[1737964604784,1.22399156,99251.0,99250.0,3.38724689]
[1737964605014,1.21699156,99251.0,99250.0,3.36524689]
[1737964605273,2.39279156,99251.0,99250.0,3.13604684]
[1737964605511,2.31769156,99251.0,99250.0,2.80939112]
[1737964605739,2.31769156,99251.0,99250.0,2.28976966]
[1737964605951,2.71769156,99251.0,99250.0,2.21402966]
[1737964606209,2.71769156,99251.0,99182.0,0.00029736]
[1737964606210,0.15,99200.0,99182.0,0.00029736]
[1737964606452,0.15,99200.0,99150.0,0.02041482]
[1737964606453,0.151273,99158.0,99150.0,0.0753]
[1737964606694,0.60038238,99158.0,99150.0,0.0753]
[1737964607113,0.75165538,99158.0,99150.0,0.0753]
[1737964607520,0.60038238,99158.0,99150.0,0.0754415]
[1737964607633,0.60087584,99158.0,99157.0,0.17538554]
[1737964607841,0.50352855,99158.0,99157.0,0.20249928]
[1737964608086,0.50452855,99158.0,99157.0,0.20249928]
[1737964608304,0.50452855,99158.0,99157.0,0.35249928]
[1737964608507,0.33697478,99158.0,99157.0,0.49812954]
[1737964608711,0.22292133,99158.0,99157.0,0.49812954]
[1737964608920,0.0297045,99228.0,99174.0,0.201664]
[1737964608921,0.0232984,99211.0,99174.0,0.201664]
[1737964609139,0.151202,99205.0,99189.0,0.201635]
[1737964609375,0.09734729,99204.0,99196.0,0.01927732]
[1737964609583,0.09734729,99204.0,99175.0,0.2218294]
[1737964609584,0.12416126,99204.0,99200.0,0.15]
[1737964609788,0.12416126,99204.0,99203.0,0.17106236]
[1737964609996,0.22150855,99204.0,99190.0,0.201633]
[1737964610201,0.09734729,99203.0,99190.0,0.201633]
[1737964610403,0.09734729,99203.0,99182.0,0.02390495]
[1737964610613,0.09734729,99203.0,99194.0,4.929e-05]
[1737964611053,0.12716126,99204.0,99202.0,0.02050111]
[1737964611421,0.12416126,99204.0,99203.0,0.17341671]
[1737964612689,0.12616126,99204.0,99203.0,0.17341671]
[1737964613142,0.12416126,99204.0,99203.0,0.17341671]
[1737964613557,0.12616126,99204.0,99203.0,0.17341671]
[1737964613757,0.13016126,99204.0,99203.0,0.17341671]
[1737964613869,0.13016126,99204.0,99203.0,0.151205]
[1737964614733,0.12816126,99204.0,99203.0,0.151205]
[1737964615010,0.14670126,99204.0,99203.0,0.151205]
[1737964615306,0.14870126,99204.0,99203.0,0.151205]
[1737964615545,0.14899905,99204.0,99203.0,0.151205]
[1737964617542,0.14899905,99204.0,99203.0,0.20863288]
[1737964617746,0.14899905,99204.0,99203.0,0.35863288]
[1737964618130,0.14899905,99204.0,99200.0,0.151208]
[1737964618359,0.14699905,99204.0,99196.0,0.01984081]
[1737964618520,0.14699905,99204.0,99197.0,0.151214]
[1737964618722,0.09734729,99203.0,99196.0,0.01984081]
[1737964618949,0.09734729,99203.0,99194.0,4.929e-05]
[1737964619152,0.09734729,99203.0,99201.0,0.151207]
[1737964619388,0.09734729,99203.0,99199.0,0.15121]
[1737964619553,0.09734729,99203.0,99195.0,0.05005749]
[1737964619759,0.09734729,99203.0,99202.0,0.151206]
[1737964620232,0.14399905,99204.0,99196.0,0.201621]
[1737964620355,0.14399905,99204.0,99203.0,0.151205]
[1737964620565,0.14399905,99204.0,99195.0,0.02405237]
[1737964620566,0.24134634,99204.0,99195.0,0.02405237]
[1737964620940,0.24134634,99204.0,99171.0,0.0497]
[1737964620941,0.151217,99195.0,99176.0,0.0753]
[1737964621143,0.24856429,99195.0,99176.0,0.0753]
[1737964621490,0.37272555,99195.0,99175.0,0.151247]
[1737964621659,0.22150855,99195.0,99177.0,0.201658]
[1737964621800,0.37272555,99195.0,99175.0,0.02053484]
[1737964622188,0.37272555,99195.0,99165.0,0.201682]
[1737964622413,0.37372555,99195.0,99166.0,0.17428387]
[1737964622614,0.37372555,99195.0,99166.0,0.02302287]
[1737964622987,0.58880371,99195.0,99157.0,0.015188]
[1737964623361,0.58780371,99195.0,99157.0,0.015188]
[1737964624149,0.59380371,99195.0,99194.0,0.00104929]
[1737964624321,0.58780371,99195.0,99194.0,4.929e-05]
[1737964624759,0.58780371,99195.0,99194.0,0.00104929]
[1737964624760,0.59880371,99195.0,99194.0,0.00104929]
[1737964624931,0.61734371,99195.0,99194.0,0.00104929]
[1737964625283,0.61534371,99195.0,99194.0,0.00104929]
[1737964625499,0.61834371,99195.0,99194.0,0.00104929]
[1737964626115,0.60669505,99195.0,99194.0,0.00104929]
[1737964626316,0.59069505,99195.0,99194.0,4.929e-05]
[1737964626762,0.60999284,99195.0,99194.0,0.00104929]
[1737964626949,0.59099284,99195.0,99194.0,4.929e-05]
[1737964627523,0.59099284,99195.0,99194.0,0.00104929]
[1737964627524,0.57699284,99195.0,99194.0,0.00104929]
[1737964627731,0.57399284,99195.0,99194.0,4.929e-05]
[1737964627993,0.41930562,99195.0,99194.0,4.929e-05]
[1737964628195,0.41930562,99195.0,99194.0,0.00104929]
[1737964628196,0.28008862,99195.0,99194.0,0.00104929]
[1737964628436,0.42130562,99195.0,99194.0,0.00104929]